fUSD/lending_fUSD_20250820
["ID","MTS","AMOUNT","RATE_DAILY","PERIOD"]
[380395956,1755726642173,-500.0,0.00024873,2]
[380395957,1755726642182,-500.0,0.00024873,2]
[380395958,1755726642191,-500.0,0.00024873,2]
[380395959,1755726642201,-500.0,0.00024873,2]
[380395960,1755726642210,-500.0,0.00024873,2]
[380395961,1755726642219,-500.0,0.00024873,2]
[380395962,1755726642229,-500.0,0.00024873,2]
[380395963,1755726642238,-4000.0,0.00024874,2]
[380395964,1755726642247,-5000.06,0.00024874,2]
[380395965,1755726642257,-994.33875738,0.00024895,2]
[380395966,1755726642267,-1151.47182884,0.00024895,2]
[380395967,1755726642276,-102198.1,0.000249,7]
[380395968,1755726642626,-602519.034208,0.000249,2]
[380395969,1755726642652,-52018.3433942,0.000249,2]
[380395970,1755726642663,-500.0,0.00024932,2]
[380395971,1755726642673,-229.05412339,0.00024967,2]
[380395972,1755726642683,-600.0,0.00025014,2]
[380395973,1755726642693,-575.0,0.00025015,2]
[380395974,1755726642702,-500.0,0.00025206,2]
[380395975,1755726642712,-1096.41674153,0.00025233,2]
[380395976,1755726642722,-585.0,0.00025289,2]
[380395977,1755726642732,-5854.56,0.000253,7]
[380395978,1755726642741,-176.52,0.00025342,2]
[380395979,1755726642751,-342.599999,0.000254,2]
[380395980,1755726642760,-1000.0,0.00025421,2]
[380395981,1755726642769,-1000.0,0.00025421,2]
[380395982,1755726642778,-1000.0,0.00025421,2]
[380395983,1755726642787,-1000.0,0.00025421,2]
[380395984,1755726642796,-1000.0,0.00025421,2]
[380395985,1755726642805,-1000.0,0.00025421,2]
[380395986,1755726642815,-1000.0,0.00025421,2]
[380395987,1755726642824,-1000.0,0.00025421,2]
[380395988,1755726642834,-590.64711466,0.00025421,2]
[380395989,1755726642843,-1000.0,0.00025421,2]
[380395990,1755726642852,-1000.0,0.00025421,2]
[380395991,1755726642862,-1000.0,0.00025421,2]
[380395992,1755726642871,-1000.0,0.00025421,2]
[380395993,1755726642880,-500.0,0.0002548,2]
[380395994,1755726642889,-600.0,0.00025562,2]
[380395995,1755726642898,-2081.0,0.00025687,2]
[380395996,1755726642907,-1000.0,0.00025713,2]
[380395997,1755726642917,-4801.92313886,0.00025744,2]
[380395998,1755726642926,-500.0,0.00025754,2]
[380395999,1755726642935,-2030.0,0.00025755,2]
[380396000,1755726642945,-1255.0,0.00025755,2]
[380396001,1755726642955,-924.0,0.00025755,2]
[380396002,1755726642978,-3371.0,0.00025755,2]
[380396003,1755726642995,-599.0,0.00025755,2]
[380396004,1755726643004,-566.0,0.00025755,2]
[380396005,1755726643014,-1297.0,0.00025755,2]
[380396006,1755726643023,-1656.0,0.00025755,2]
[380396007,1755726643033,-6091.0,0.00025755,2]
[380396008,1755726643042,-4152.0,0.00025755,2]
[380396009,1755726643052,-717.0,0.00025755,2]
[380396011,1755726643062,-21500.0,0.00025755,2]
[380396013,1755726643072,-2081.0,0.00025818,2]
[380396015,1755726643081,-2081.0,0.0002582,2]
[380396016,1755726643091,-150.0,0.00025859,2]
[380396017,1755726643100,-150.0,0.00025859,2]
[380396018,1755726643110,-150.0,0.00025859,2]
[380396019,1755726643119,-150.0,0.00025859,2]
[380396020,1755726643128,-150.0,0.00025859,2]
[380396021,1755726643138,-150.0,0.00025859,2]
[380396022,1755726643147,-150.0,0.00025859,2]
[380396024,1755726643156,-150.0,0.00025859,2]
[380396025,1755726643165,-150.0,0.00025859,2]
[380396026,1755726643175,-150.0,0.00025859,2]
[380396027,1755726643184,-150.0,0.00025859,2]
[380396028,1755726643194,-150.0,0.00025859,2]
[380396029,1755726643203,-322.6107,0.00025889,2]
[380396031,1755726643212,-151.0,0.00025889,2]
[380396032,1755726643222,-151.0,0.00025889,2]
[380396033,1755726643231,-151.0,0.00025889,2]
[380396034,1755726643240,-151.0,0.00025889,2]
[380396035,1755726643250,-721.12765535,0.00025889,2]
[380396036,1755726643259,-160.0,0.00025889,2]
[380396037,1755726643269,-277.35679052,0.00025889,2]
[380396038,1755726643278,-1936.20493806,0.00025889,2]
[380396039,1755726643287,-151.0,0.00025889,2]
[380396040,1755726643297,-9274.81107495,0.00025889,2]
[380396041,1755726643306,-151.0,0.00025889,2]
[380396042,1755726643315,-1000.0,0.00025889,2]
[380396043,1755726643325,-151.0,0.00025889,2]
[380396044,1755726643334,-1000.0,0.00025889,2]
[380396045,1755726643344,-151.0,0.00025889,2]
[380396046,1755726643353,-1000.0,0.00025889,2]
[380396047,1755726643363,-151.0,0.00025889,2]
[380396048,1755726643373,-151.0,0.00025889,2]
[380396049,1755726643382,-1000.0,0.00025889,2]
[380396050,1755726643391,-1000.0,0.00025889,2]
[380396051,1755726643401,-151.0,0.00025889,2]
[380396052,1755726643410,-1000.0,0.00025889,2]
[380396053,1755726643419,-151.0,0.00025889,2]
[380396054,1755726643433,-1000.0,0.00025889,2]
[380396055,1755726643443,-151.0,0.00025889,2]
[380396056,1755726643452,-1000.0,0.00025889,2]
[380396057,1755726643462,-151.0,0.00025889,2]
[380396058,1755726643471,-1000.0,0.00025889,2]
[380396059,1755726643480,-151.0,0.00025889,2]
[380396060,1755726643489,-996.59942461,0.00025889,2]
[380396061,1755726643498,-151.0,0.00025889,2]
[380396062,1755726643509,-500.0,0.00025889,2]
[380396063,1755726643518,-500.0,0.00025889,2]
[380396064,1755726643527,-500.0,0.00025889,2]
[380396065,1755726643538,-500.0,0.00025889,2]
[380396066,1755726643547,-584.93012321,0.00025889,2]
[380396067,1755726643556,-1500.0,0.000259,2]
[380396068,1755726643565,-2081.0,0.00025903,2]
[380396069,1755726643575,-8926.06016139,0.00025944,2]
[380396070,1755726643585,-7569.92047223,0.00025957,2]
[380396071,1755726643594,-167.22463356,0.00025968,2]
[380396072,1755726643603,-1500.0,0.00025968,2]
[380396073,1755726643612,-1500.0,0.00025968,2]
[380396074,1755726643621,-1500.0,0.00025968,2]
[380396075,1755726643630,-1500.0,0.00025968,2]
[380396076,1755726643639,-1414.80833616,0.00025968,2]
[380396077,1755726643648,-1500.0,0.00025968,2]
[380396078,1755726643657,-602.99012364,0.00025968,2]
[380396079,1755726643667,-1500.0,0.00025968,2]
[380396080,1755726643676,-1500.0,0.00025968,2]
[380396081,1755726643685,-1500.0,0.00025968,2]
[380396082,1755726643694,-1500.0,0.00025968,2]
[380396083,1755726643704,-1800.0,0.00026,27]
[380396084,1755726643714,-1052.83,0.00026,2]
[380396086,1755726643723,-500.0,0.00026028,2]
[380396087,1755726643732,-2081.0,0.00026058,2]
[380396088,1755726643742,-2081.0,0.00026093,2]
[380396089,1755726643751,-600.0,0.0002611,2]
[380396090,1755726643760,-2081.0,0.0002615,2]
[380396091,1755726643769,-2222.22,0.0002615,7]
[380396092,1755726643778,-159.89798356,0.000262,2]
[380396093,1755726643787,-500.0,0.00026302,2]
[380396094,1755726643796,-2000.0,0.00026302,2]
[380396095,1755726643805,-52018.34339418,0.00026303,5]
[380396096,1755726643814,-2081.0,0.00026361,7]
[380396097,1755726643823,-253.8,0.000264,2]
[380396098,1755726643832,-300.0,0.000264,2]
[380396099,1755726643842,-5854.56,0.000264,7]
[380396100,1755726643851,-6654.4074,0.000264,2]
[380396101,1755726643860,-151.0,0.00026437,2]
[380396102,1755726643869,-151.0,0.00026437,2]
[380396103,1755726643879,-2081.0,0.00026484,2]
[380396104,1755726643888,-2083.0,0.00026489,2]
[380396105,1755726643897,-1096.41674153,0.00026499,2]
[380396106,1755726643906,-102198.1,0.000265,7]
[380396107,1755726643915,-1148.81340019,0.00026516,2]
[380396108,1755726643924,-2000.0,0.00026516,2]
[380396109,1755726643934,-1805.81616925,0.00026516,2]
[380396110,1755726643943,-2000.0,0.00026516,2]
[380396111,1755726643953,-2000.0,0.00026516,2]
[380396112,1755726643962,-1349.0152414,0.00026516,2]
[380396113,1755726643971,-2000.0,0.00026516,2]
[380396114,1755726643981,-2000.0,0.00026516,2]
[380396115,1755726643990,-716.15902767,0.00026516,2]
[380396116,1755726644000,-500.0,0.00026576,2]
[380396117,1755726644009,-600.0,0.00026658,2]
[380396118,1755726644018,-605.16,0.00026676,2]
[380396119,1755726644028,-2081.0,0.00026737,2]
[380396120,1755726644037,-2000.0,0.000268,2]
[380396121,1755726644047,-2081.0,0.00026814,2]
[380396122,1755726644056,-1829.97,0.00026849,22]
[380396123,1755726644065,-500.0,0.0002685,2]
[380396124,1755726644075,-994.33875738,0.00026893,2]
[380396125,1755726644084,-151.0,0.00026985,2]
[380396126,1755726644093,-151.0,0.00026985,2]
[380396127,1755726644103,-463.20749437,0.00027,2]
[380396128,1755726644112,-3600.0,0.00027,28]
[380396129,1755726644122,-2081.0,0.00027006,2]
[380396130,1755726644131,-2000.0,0.00027064,2]
[380396131,1755726644141,-2500.0,0.00027064,2]
[380396132,1755726644150,-2154.68601917,0.00027064,2]
[380396133,1755726644160,-2500.0,0.00027064,2]
[380396134,1755726644170,-1242.88028938,0.00027064,2]
[380396135,1755726644179,-7569.92047223,0.00027114,2]
[380396136,1755726644189,-1555.1,0.00027123,2]
[380396137,1755726644198,-262.43,0.00027123,4]
[380396138,1755726644208,-500.0,0.00027124,2]
[380396139,1755726644217,-2083.0,0.00027174,7]
[380396140,1755726644226,-600.0,0.00027206,2]
[380396141,1755726644236,-409.53211256,0.00027218,8]
[380396142,1755726644245,-334.5472959,0.00027258,2]
[380396143,1755726644254,-287.61899177,0.00027258,2]
[380396144,1755726644264,-4801.92313886,0.00027266,2]
[380396145,1755726644273,-1052.83,0.000273,2]
[380396146,1755726644283,-150.00000001,0.00027345,4]
[380396147,1755726644292,-150.0,0.00027345,4]
[380396148,1755726644301,-163.64826578,0.00027345,4]
[380396149,1755726644310,-150.27475247,0.00027345,4]
[380396150,1755726644319,-150.0,0.00027345,4]
[380396151,1755726644328,-150.0,0.00027345,4]
[380396152,1755726644337,-150.0,0.00027345,4]
[380396153,1755726644346,-150.0,0.00027345,4]
[380396154,1755726644355,-150.0,0.00027345,4]
[380396155,1755726644364,-150.0,0.00027345,4]
[380396156,1755726644373,-150.0,0.00027345,4]
[380396157,1755726644383,-150.0,0.00027345,4]
[380396158,1755726644392,-150.0,0.00027345,4]
[380396159,1755726644402,-150.0,0.00027345,4]
[380396160,1755726644412,-150.0,0.00027345,4]
[380396161,1755726644421,-163.64826578,0.00027376,4]
[380396162,1755726644434,-900.0,0.00027388,2]
[380396163,1755726644443,-500.0,0.00027388,2]
[380396164,1755726644453,-500.0,0.00027388,2]
[380396165,1755726644462,-248.1975563,0.00027396,2]
[380396166,1755726644471,-569.5476342,0.00027397,2]
[380396167,1755726644482,-2222.22,0.00027397,7]
[380396168,1755726644491,-300.0,0.00027397,2]
[380396169,1755726644500,-543.74,0.00027397,80]
[380396170,1755726644510,-209.97062689,0.00027397,2]
[380396171,1755726644519,-1500.0,0.00027397,16]
[380396172,1755726644528,-300.0,0.00027397,5]
[380396173,1755726644537,-500.0,0.00027398,2]
[380396174,1755726644546,-300.0,0.000274,2]
[380396175,1755726644555,-300.0,0.000274,2]
[380396176,1755726644564,-163.64826578,0.00027407,7]
[380396177,1755726644573,-150.0,0.00027418,7]
[380396178,1755726644582,-150.0,0.00027427,7]
[380396179,1755726644592,-150.0,0.00027432,7]
[380396180,1755726644601,-163.64826578,0.00027437,7]
[380396181,1755726644611,-2000.0,0.00027439,120]
[380396182,1755726644620,-150.0,0.0002744,7]
[380396183,1755726644630,-150.0,0.00027446,7]
[380396184,1755726644639,-163.64826578,0.00027468,7]
[380396185,1755726644649,-150.0,0.00027477,7]
[380396186,1755726644658,-150.0,0.0002749,7]
[380396187,1755726644667,-150.0,0.0002749,7]
[380396188,1755726644677,-163.64826578,0.00027499,7]
[380396189,1755726644686,-5854.56,0.000275,7]
[380396190,1755726644696,-2081.0,0.00027503,2]
[380396191,1755726644705,-150.0,0.00027509,7]
[380396192,1755726644715,-150.0,0.00027514,7]
[380396193,1755726644724,-150.0,0.00027519,7]
[380396194,1755726644733,-163.64826578,0.00027529,7]
[380396195,1755726644742,-150.0,0.00027535,7]
[380396196,1755726644751,-150.0,0.00027548,7]
[380396197,1755726644761,-163.64826578,0.0002756,7]
[380396198,1755726644770,-150.0,0.00027562,7]
[380396199,1755726644779,-700.0,0.0002757,2]
[380396200,1755726644788,-791.17675997,0.0002757,2]
[380396201,1755726644797,-163.64826578,0.00027591,7]
[380396202,1755726644807,-150.0,0.00027592,7]
[380396203,1755726644816,-150.0,0.00027606,7]
[380396204,1755726644825,-150.0,0.00027609,7]
[380396205,1755726644834,-3000.0,0.00027612,5]
[380396206,1755726644845,-907.95138748,0.00027612,5]
[380396207,1755726644854,-163.64826578,0.00027621,7]
[380396208,1755726644863,-150.0,0.0002763,7]
[380396209,1755726644872,-150.0,0.00027635,7]
[380396210,1755726644881,-150.0,0.00027635,7]
[380396211,1755726644891,-150.0,0.00027649,7]
[380396212,1755726644900,-163.64826578,0.00027652,7]
[380396213,1755726644910,-500.0,0.00027672,2]
[380396214,1755726644919,-150.0,0.00027674,7]
[380396215,1755726644929,-163.64826578,0.00027683,7]
[380396216,1755726644938,-150.0,0.00027683,7]
[380396217,1755726644948,-2081.0,0.00027687,2]
[380396218,1755726644957,-150.0,0.00027692,7]
[380396219,1755726644967,-400.0,0.000277,15]
[380396220,1755726644976,-52018.34339418,0.00027707,8]
[380396221,1755726644986,-150.0,0.00027707,7]
[380396222,1755726644995,-163.64826578,0.00027713,7]
[380396223,1755726645005,-150.0,0.00027725,7]
[380396224,1755726645014,-150.0,0.00027742,7]
[380396225,1755726645024,-163.64826578,0.00027744,7]
[380396226,1755726645034,-150.0,0.0002775,7]
[380396227,1755726645043,-600.0,0.00027754,2]
[380396228,1755726645052,-150.0,0.00027756,7]
[380396229,1755726645062,-252.3,0.0002776,2]
[380396230,1755726645071,-1096.41674153,0.00027766,2]
[380396231,1755726645080,-163.64826578,0.00027775,7]
[380396232,1755726645090,-150.0,0.00027779,7]
[380396233,1755726645099,-150.0,0.00027779,7]
[380396234,1755726645108,-150.0,0.00027779,7]
[380396235,1755726645119,-163.64826578,0.00027806,7]
[380396236,1755726645128,-150.0,0.0002782,7]
[380396237,1755726645137,-163.64826578,0.00027836,7]
[380396238,1755726645147,-150.0,0.00027838,7]
[380396239,1755726645156,-150.0,0.00027852,7]
[380396240,1755726645165,-150.0,0.00027852,7]
[380396241,1755726645174,-150.0,0.00027852,7]
[380396242,1755726645184,-150.0,0.00027866,7]
[380396243,1755726645193,-163.64826578,0.00027867,7]
[380396244,1755726645203,-150.0,0.00027874,7]
[380396245,1755726645212,-2083.0,0.00027895,2]
[380396246,1755726645222,-163.64826578,0.00027898,7]
[380396247,1755726645231,-150.0,0.00027915,7]
[380396248,1755726645240,-150.0,0.0002792,7]
[380396249,1755726645249,-150.0,0.00027924,7]
[380396250,1755726645258,-150.0,0.00027924,7]
[380396251,1755726645267,-163.64826578,0.00027928,7]
[380396252,1755726645276,-600.0,0.00027945,5]
[380396253,1755726645285,-500.0,0.00027946,2]
[380396254,1755726645295,-150.0,0.00027953,7]
[380396255,1755726645304,-150.0,0.00027953,7]
[380396256,1755726645313,-163.64826578,0.00027959,7]
[380396257,1755726645322,-163.64826578,0.0002799,7]
[380396258,1755726645332,-150.0,0.00027996,7]
[380396259,1755726645342,-12959.42166981,0.00028,2]
[380396260,1755726645351,-279.15,0.00028,2]
[380396261,1755726645361,-461.0,0.00028,2]
[380396262,1755726645370,-259.18843339,0.00028,2]
[380396263,1755726645379,-3600.0,0.00028,29]
[380396264,1755726645388,-150.0,0.00028002,7]
[380396265,1755726645398,-150.0,0.00028006,7]
[380396266,1755726645407,-20016.2607248,0.00028009,2]
[380396267,1755726645416,-3643.6111366,0.00028009,2]
[380396268,1755726645426,-150.0,0.0002801,7]
[380396269,1755726645438,-3565.2953934,0.00028019,2]
[380396270,1755726645447,-163.64826578,0.0002802,7]
[380396271,1755726645457,-150.0,0.0002802,7]
[380396272,1755726645466,-150.0,0.0002804,7]
[380396273,1755726645476,-163.64826578,0.00028051,7]
[380396274,1755726645486,-150.0,0.00028054,7]
[380396276,1755726645496,-217.0,0.0002806,30]
[380396277,1755726645509,-150.0,0.00028069,7]
[380396278,1755726645520,-150.0,0.00028069,7]
[380396279,1755726645529,-150.0,0.00028073,5]
[380396280,1755726645538,-84266.1498281,0.00028077,2]
[380396281,1755726645547,-126572.091141,0.00028077,2]
[380396282,1755726645556,-163.64826578,0.00028082,7]
[380396283,1755726645565,-150.0,0.00028084,7]
[380396284,1755726645574,-102198.1,0.000281,7]
[380396285,1755726645584,-150.0,0.00028105,7]
[380396286,1755726645594,-150.0,0.00028105,7]
[380396287,1755726645604,-150.0,0.00028105,7]
[380396288,1755726645613,-2081.0,0.00028107,2]
[380396289,1755726645623,-163.64826578,0.00028112,7]
[380396290,1755726645633,-2083.0,0.00028124,2]
[380396291,1755726645642,-150.0,0.00028126,7]
[380396292,1755726645652,-150.0,0.00028138,7]
[380396293,1755726645662,-150.0,0.00028141,7]
[380396294,1755726645671,-163.64826578,0.00028143,7]
[380396295,1755726645680,-150.0,0.00028155,7]
[380396296,1755726645689,-1884.71469546,0.0002816,5]
[380396297,1755726645699,-150.0,0.00028166,7]
[380396298,1755726645708,-1876.2,0.00028169,30]
[380396299,1755726645718,-163.64826578,0.00028174,7]
[380396300,1755726645727,-150.0,0.00028189,7]
[380396301,1755726645736,-2081.0,0.000282,7]
[380396302,1755726645745,-150.0,0.000282,7]
[380396303,1755726645755,-163.64826578,0.00028205,7]
[380396304,1755726645764,-2081.0,0.00028213,2]
[380396305,1755726645773,-150.0,0.00028213,7]
[380396306,1755726645783,-150.0,0.00028213,7]
[380396307,1755726645792,-150.0,0.00028213,7]
[380396308,1755726645801,-1208.56,0.00028219,7]
[380396309,1755726645810,-429.69613273,0.0002822,2]
[380396310,1755726645820,-163.64826578,0.00028235,7]
[380396311,1755726645829,-150.0,0.00028249,7]
[380396312,1755726645839,-150.0,0.00028257,7]
[380396313,1755726645849,-163.64826578,0.00028266,7]
[380396314,1755726645858,-150.0,0.0002827,7]
[380396315,1755726645867,-7569.92047223,0.0002827,2]
[380396316,1755726645877,-150.0,0.00028286,7]
[380396317,1755726645887,-150.0,0.00028295,7]
[380396318,1755726645896,-163.64826578,0.00028297,7]
[380396319,1755726645905,-150.0,0.000283,7]
[380396320,1755726645915,-2081.0,0.00028304,2]
[380396321,1755726645924,-186.56,0.00028313,2]
[380396322,1755726645933,-163.64826578,0.00028327,7]
[380396323,1755726645942,-150.0,0.00028331,7]
[380396324,1755726645951,-150.0,0.00028358,7]
[380396325,1755726645960,-163.64826578,0.00028358,7]
[380396326,1755726645970,-150.0,0.00028358,7]
[380396327,1755726645979,-150.0,0.00028358,7]
[380396328,1755726645988,-150.0,0.00028358,7]
[380396329,1755726645997,-150.0,0.00028387,7]
[380396330,1755726646006,-163.64826578,0.00028389,7]
[380396331,1755726646015,-150.0,0.0002839,7]
[380396332,1755726646024,-300.0,0.000284,2]
[380396333,1755726646033,-300.0,0.000284,2]
[380396334,1755726646043,-150.0,0.00028402,7]
[380396335,1755726646052,-150.0,0.00028413,7]
[380396336,1755726646061,-163.64826578,0.00028419,7]
[380396337,1755726646071,-150.0,0.0002843,7]
[380396338,1755726646080,-163.64826578,0.0002845,7]
[380396339,1755726646089,-150.0,0.00028459,7]
[380396340,1755726646099,-150.0,0.00028474,7]
[380396341,1755726646108,-163.64826578,0.00028481,7]
[380396342,1755726646117,-900.0,0.00028484,7]
[380396343,1755726646129,-500.0,0.00028484,7]
[380396344,1755726646138,-150.0,0.00028485,7]
[380396345,1755726646148,-181.13644639,0.00028493,5]
[380396346,1755726646157,-150.0,0.00028495,7]
[380396347,1755726646167,-150.0,0.00028503,7]
[380396348,1755726646176,-150.0,0.00028503,7]
[380396349,1755726646185,-163.64826578,0.00028511,7]
[380396350,1755726646194,-1184.32,0.00028521,2]
[380396351,1755726646203,-150.0,0.00028527,7]
[380396352,1755726646213,-150.0,0.00028534,7]
[380396353,1755726646222,-2000.0,0.00028539,120]
[380396354,1755726646232,-500.0,0.00028539,120]
[380396355,1755726646241,-163.64826578,0.00028542,7]
[380396356,1755726646250,-4000.0,0.00028548,4]
[380396357,1755726646260,-150.0,0.00028561,7]
[380396358,1755726646269,-150.0,0.00028561,7]
[380396359,1755726646278,-163.64826578,0.00028573,7]
[380396360,1755726646287,-150.0,0.00028575,7]
[380396361,1755726646296,-150.0,0.00028577,7]
[380396362,1755726646305,-150.0,0.0002858,7]
[380396363,1755726646315,-2084.0,0.00028599,2]
[380396364,1755726646324,-1052.83,0.000286,30]
[380396365,1755726646333,-163.64826578,0.00028604,7]
[380396366,1755726646343,-250.0,0.00028621,5]
[380396367,1755726646352,-346.92554585,0.00028627,2]
[380396368,1755726646361,-298.26089446,0.00028627,2]
[380396369,1755726646370,-747.8093786,0.00028628,2]
[380396370,1755726646380,-163.64826578,0.00028634,7]
[380396371,1755726646389,-150.0,0.00028647,7]
[380396372,1755726646398,-150.0,0.00028647,7]
[380396373,1755726646408,-150.0,0.00028647,7]
[380396374,1755726646417,-150.0,0.00028659,7]
[380396375,1755726646427,-150.0,0.00028662,7]
[380396376,1755726646438,-163.64826578,0.00028665,7]
[380396377,1755726646448,-150.0,0.00028666,7]
[380396378,1755726646457,-150.0,0.00028674,7]
[380396379,1755726646466,-163.64826578,0.00028696,7]
[380396380,1755726646477,-150.0,0.00028696,7]
[380396381,1755726646486,-2083.0,0.00028697,2]
[380396382,1755726646495,-2084.0,0.00028701,7]
[380396383,1755726646506,-150.0,0.0002872,7]
[380396384,1755726646515,-163.64826578,0.00028726,7]
[380396385,1755726646524,-150.0,0.00028734,7]
[380396386,1755726646533,-150.0,0.00028741,7]
[380396387,1755726646542,-217.0,0.0002875,30]
[380396388,1755726646551,-2028.0,0.00028755,2]
[380396389,1755726646879,-1255.0,0.00028755,2]
[380396390,1755726646888,-884.0,0.00028755,2]
[380396391,1755726646897,-599.0,0.00028755,2]
[380396392,1755726646907,-566.0,0.00028755,2]
[380396393,1755726646916,-1297.0,0.00028755,2]
[380396394,1755726646925,-1656.0,0.00028755,2]
[380396395,1755726646936,-6091.0,0.00028755,2]
[380396396,1755726646945,-4152.0,0.00028755,2]
[380396397,1755726646955,-717.0,0.00028755,2]
[380396398,1755726646964,-21500.0,0.00028755,2]
[380396399,1755726646974,-163.64826578,0.00028757,7]
[380396400,1755726646983,-150.0,0.00028763,7]
[380396401,1755726646993,-1184.32,0.00028767,2]
[380396402,1755726647002,-150.0,0.00028769,7]
[380396403,1755726647012,-163.64826578,0.00028788,7]
[380396404,1755726647021,-4801.92313886,0.00028788,2]
[380396405,1755726647031,-150.0,0.00028792,7]
[380396406,1755726647040,-150.0,0.00028792,7]
[380396407,1755726647050,-150.0,0.00028798,7]
[380396408,1755726647059,-5854.56,0.000288,7]
[380396409,1755726647069,-163.64826578,0.00028818,7]
[380396410,1755726647079,-150.0,0.00028821,7]
[380396411,1755726647088,-150.0,0.00028823,7]
[380396412,1755726647098,-163.64826578,0.00028849,7]
[380396413,1755726647107,-150.0,0.00028864,7]
[380396414,1755726647116,-150.0,0.00028864,7]
[380396415,1755726647126,-150.0,0.00028864,7]
[380396416,1755726647136,-150.0,0.00028864,7]
[380396417,1755726647145,-150.0,0.00028864,7]
[380396418,1755726647154,-150.0,0.00028864,7]
[380396419,1755726647163,-150.0,0.00028864,7]
[380396420,1755726647173,-163.64826578,0.0002888,7]
[380396421,1755726647182,-3687.650376,0.0002888,2]
[380396422,1755726647191,-994.33875738,0.00028891,2]
[380396423,1755726647201,-1208.56,0.00028904,9]
[380396424,1755726647210,-150.0,0.00028905,7]
[380396425,1755726647219,-150.0,0.00028908,7]
[380396426,1755726647229,-163.64826578,0.0002891,7]
[380396427,1755726647238,-2222.22,0.00028917,30]
[380396428,1755726647247,-150.0,0.0002893,7]
[380396429,1755726647257,-150.0,0.00028937,7]
[380396430,1755726647266,-150.0,0.00028937,7]
[380396431,1755726647276,-163.64826578,0.00028941,7]
[380396432,1755726647285,-150.0,0.00028959,7]
[380396433,1755726647295,-150.0,0.00028966,7]
[380396434,1755726647305,-700.0,0.0002897,2]
[380396435,1755726647315,-400.0,0.0002897,2]
[380396436,1755726647326,-163.64826578,0.00028972,7]
[380396437,1755726647336,-150.0,0.00028988,7]
[380396438,1755726647345,-200.0,0.0002899,2]
[380396439,1755726647355,-150.0,0.00028995,7]
[380396440,1755726647365,-461.0,0.00029,30]
[380396441,1755726647375,-163.64826578,0.00029002,7]
[380396442,1755726647384,-150.0,0.00029009,7]
[380396443,1755726647393,-1000.0,0.0002902,12]
[380396444,1755726647403,-1096.41674153,0.00029032,2]
[380396445,1755726647412,-163.64826578,0.00029033,7]
[380396446,1755726647421,-150.0,0.00029033,7]
[380396447,1755726647433,-1829.97,0.00029041,26]
[380396448,1755726647442,-1372.12992289,0.00029041,120]
[380396449,1755726647451,-150.0,0.00029054,7]
[380396450,1755726647461,-150.0,0.00029063,7]
[380396451,1755726647471,-163.64826578,0.00029064,7]
[380396452,1755726647481,-150.0,0.00029067,7]
[380396453,1755726647490,-150.0,0.0002907,7]
[380396454,1755726647499,-329.26892148,0.0002908,2]
[380396455,1755726647510,-150.0,0.00029081,7]
[380396456,1755726647520,-150.0,0.00029081,7]
[380396457,1755726647529,-150.0,0.00029081,7]
[380396458,1755726647539,-163.64826578,0.00029095,7]
[380396459,1755726647548,-1000.0,0.00029109,2]
[380396460,1755726647559,-2000.0,0.00029109,2]
[380396461,1755726647568,-52018.34339418,0.0002911,11]
[380396462,1755726647578,-163.64826578,0.00029125,7]